bitfinex/quotes_SOLUSD_20250724
["timestamp","ask_amount","ask_price","bid_price","bid_amount"]
[1753400583833,7.87647318,182.81,182.78,0.66]
[1753400584534,13.34641796,182.82,182.79,0.66]
[1753400584715,7.87647318,182.83,182.8,0.66]
[1753400585030,7.87647318,182.88,182.82,7.87647318]
[1753400585208,13.3743131,182.89,182.83,7.87647318]
[1753400585530,13.3743131,182.89,182.83,8.53647318]
[1753400585832,39.3743131,182.89,182.83,8.53647318]
[1753400586937,0.03,182.89,182.84,7.87647318]
[1753400587125,0.03,182.89,182.87,7.87647318]
[1753400587439,0.03,182.89,182.88,7.87647318]
[1753400588064,0.03,182.89,182.88,8.53647318]
[1753400588833,0.03,182.89,182.88,30.78922364]
[1753400589037,0.03,182.93,182.92,7.87647318]
[1753400589245,0.03,182.93,182.92,72.08785715]
[1753400589423,0.03,183.0,182.96,7.87647318]
[1753400589622,0.03,183.0,182.97,40.44]
[1753400589926,0.03,183.0,182.98,7.87647318]
[1753400590134,0.03,183.0,182.99,7.87647318]
[1753400590326,0.03,183.04,183.01,5.46418228]
[1753400590549,0.03,183.04,183.02,39.78]
[1753400590734,0.03,183.04,183.03,7.87647318]
[1753400590911,0.03,183.04,183.03,8.53647318]
[1753400591235,0.03,183.04,183.03,12.55144548]
[1753400591610,0.03,183.04,183.03,29.33612945]
[1753400592418,0.03,183.04,183.03,34.79971465]
[1753400593940,0.03,183.04,183.03,29.33612945]
[1753400594313,0.03,183.04,183.03,12.55144548]
[1753400595121,0.03,183.04,183.03,52.29144548]
[1753400595335,0.03,183.04,183.03,40.4]
[1753400595535,0.03,183.04,183.03,52.29144548]
[1753400596252,0.03,183.04,183.03,69.07612945]
[1753400597244,0.03,183.04,183.03,74.53971465]
[1753400597441,0.03,183.04,183.03,74.82403779]
[1753400597942,0.03,183.04,183.03,74.53971465]
[1753400598150,0.03,183.04,183.03,69.07612945]
[1753400599340,0.03,183.04,183.03,74.53971465]
[1753400599518,0.03,183.04,183.03,74.82403779]
[1753400599719,0.03,183.08,183.07,16.78468397]
[1753400600039,0.03,183.08,183.07,68.39612945]
[1753400600246,0.03,183.08,183.07,69.05612945]
[1753400601032,0.03,183.08,183.07,52.27144548]
[1753400601236,0.03,183.08,183.07,69.05612945]
[1753400602130,0.03,183.08,183.07,74.51852088]
[1753400602329,0.03,183.08,183.07,62.6270754]
[1753400602534,0.03,183.08,183.07,74.51852088]
[1753400602929,0.03,183.08,183.07,52.27144548]
[1753400603626,0.03,183.08,183.07,39.72]
[1753400604721,12.64144548,183.08,183.07,39.72]
[1753400605030,0.03,183.08,183.07,39.72]
[1753400605431,0.03,183.08,183.07,52.27144548]
[1753400608737,0.03,183.08,183.07,51.61144548]
[1753400609059,0.03,183.08,183.07,39.72]
[1753400610848,0.03,183.08,183.07,57.75383691]
[1753400611052,0.03,183.08,183.07,74.53852088]
[1753400611251,0.03,183.12,183.08,16.78468397]
[1753400611429,0.03,183.12,183.11,11.89144548]
[1753400611752,0.03,183.12,183.11,51.59144548]
[1753400612129,0.03,183.12,183.11,52.27144548]
[1753400612336,0.03,183.12,183.11,69.05612945]
[1753400612955,0.03,183.12,183.11,74.51732763]
[1753400613154,0.03,183.12,183.11,70.49903139]
[1753400613329,0.03,183.12,183.11,39.7]
[1753400613849,0.03,183.12,183.11,48.25314924]
[1753400614258,0.03,183.12,183.11,39.7]
[1753400614844,0.03,183.12,183.11,0.68]
[1753400615060,0.03,183.12,183.11,48.25314924]
[1753400615941,0.03,183.12,183.11,53.71434742]
[1753400616458,0.03,183.12,183.11,70.49903139]
[1753400617958,0.03,183.12,183.11,65.03783321]
[1753400620639,0.03,183.12,183.11,70.49903139]
[1753400621038,0.03,183.12,183.11,65.03783321]
[1753400621487,0.03,183.12,183.11,47.57314924]
[1753400621665,0.03,183.12,183.11,39.7]
[1753400625156,0.03,183.12,183.11,48.25314924]
[1753400625455,7.90314924,183.12,183.07,0.06]
[1753400625792,7.87314924,183.1,183.08,39.68]
[1753400626154,8.59314924,183.1,183.08,39.68]
[1753400626382,7.87314924,183.11,183.08,39.68]
[1753400626762,0.75,183.12,183.08,39.68]
[1753400626984,0.03,183.12,183.08,40.36]
[1753400627185,5.49089995,183.12,183.08,40.36]
[1753400628267,0.03,183.12,183.08,48.23314924]
[1753400628470,0.03,183.12,183.09,0.68]
[1753400628681,0.03,183.12,183.1,39.68]
[1753400630073,0.03,183.12,183.11,0.68]
[1753400630264,0.03,183.12,183.1,47.55314924]
[1753400630454,0.03,183.12,183.11,39.68]
[1753400631879,0.03,183.12,183.11,40.36]
[1753400632078,0.03,183.12,183.11,48.23314924]
[1753400632282,0.03,183.12,183.11,53.69434742]
[1753400632464,0.03,183.12,183.11,48.23314924]
[1753400633282,0.03,183.12,183.11,39.68]
[1753400635375,0.03,183.12,183.11,40.36]
[1753400635796,0.03,183.12,183.11,53.69434742]
[1753400635993,0.03,183.12,183.11,48.23314924]
[1753400636199,0.03,183.12,183.11,40.36]
[1753400636375,0.03,183.12,183.11,48.23314924]
[1753400636771,0.03,183.12,183.11,70.47903139]
[1753400637367,0.03,183.12,183.11,78.39623139]
[1753400640080,0.03,183.12,183.11,78.68055453]
[1753400642001,0.03,183.12,183.11,38.71623139]
[1753400642211,0.03,183.12,183.09,26.28432314]
[1753400642212,8.55314924,183.12,183.09,26.0]
[1753400642497,8.55314924,183.12,183.07,0.06]
[1753400642498,7.87314924,183.1,183.07,0.06]
[1753400642805,7.87314924,183.1,183.08,39.66]
[1753400643101,8.52314924,183.09,183.08,39.66]
[1753400643307,7.87314924,183.1,183.08,39.66]
[1753400644572,8.52314924,183.09,183.08,39.66]
[1753400644772,8.52314924,183.09,183.07,0.06]
[1753400644973,8.52314924,183.08,183.07,0.06]
[1753400645177,8.52314924,183.08,183.07,39.72]
[1753400646002,0.65,183.08,183.07,39.72]
[1753400646292,13.33505006,183.09,183.07,39.72]
[1753400646499,13.98505006,183.09,183.07,39.72]
[1753400646912,6.11190082,183.09,183.07,39.72]
[1753400647080,7.87314924,183.11,183.07,39.72]
[1753400647280,6.11121962,183.11,183.07,39.72]
[1753400647482,13.33436886,183.11,183.07,39.72]
[1753400647710,0.65,183.11,183.07,39.72]
[1753400647889,5.49090636,183.12,183.07,47.59314924]
[1753400648401,6.14090636,183.12,183.07,47.59314924]
[1753400648894,5.49090636,183.12,183.07,48.24314924]
[1753400649202,5.49090636,183.12,183.07,40.37]
[1753400649582,6.14090636,183.12,183.07,40.37]
[1753400649782,14.0140556,183.12,183.07,40.37]
[1753400650084,14.0140556,183.12,183.07,39.72]
[1753400650605,0.65,183.11,183.07,39.72]
[1753400650785,13.3640556,183.12,183.07,39.72]
[1753400650985,14.0140556,183.12,183.07,39.72]
[1753400651384,8.52314924,183.11,183.07,0.06]
[1753400651585,8.52314924,183.11,183.08,39.66]
[1753400653702,0.03,183.12,183.08,39.66]
[1753400654005,0.03,183.12,183.09,0.65]
[1753400654304,7.90314924,183.12,183.08,39.66]
[1753400654698,13.3641161,183.12,183.08,39.66]
[1753400655006,8.52314924,183.11,183.08,39.66]
[1753400656708,5.46122371,183.11,183.08,39.66]
[1753400656908,7.87314924,183.09,183.07,0.06]
[1753400657121,33.87314924,183.08,183.04,0.06]
[1753400657284,34.01531081,183.05,183.04,0.06]
[1753400657491,34.15747238,183.05,183.04,0.06]
[1753400657689,34.52314924,183.05,183.04,0.06]
[1753400658103,34.80747238,183.05,183.04,0.06]
[1753400658915,40.27046063,183.05,183.04,0.06]
[1753400659410,31.46298825,183.05,183.04,0.06]
[1753400659611,33.87314924,183.08,183.04,39.72]
[1753400659793,33.87314924,183.08,183.04,40.37]
[1753400659992,7.87314924,183.05,183.04,0.06]
[1753400660389,8.52314924,183.05,183.04,0.06]
[1753400660787,14.27046063,183.05,183.04,0.06]
[1753400661194,0.28432314,183.04,183.0,0.06]
[1753400661408,7.87314924,183.01,183.0,0.06]
[1753400661906,8.52314924,183.01,183.0,0.06]
[1753400662794,13.98733152,183.01,183.0,0.06]
[1753400662997,14.27165466,183.01,183.0,0.06]
[1753400663601,0.28432314,183.0,182.99,0.06]
[1753400663807,34.80747238,183.0,182.99,0.06]
[1753400664815,40.27195325,183.0,182.99,0.06]
[1753400665982,40.27195325,183.0,182.92,39.66]
[1753400665983,26.0,182.94,182.92,39.66]
[1753400666307,7.87314924,182.93,182.89,0.2]
[1753400666489,7.87314924,182.9,182.89,0.2]
[1753400666910,13.34054159,182.91,182.89,0.2]
[1753400667721,7.87314924,182.91,182.89,0.2]
[1753400668012,27.32240437,183.0,182.89,0.2]
[1753400668013,7.87314924,182.96,182.9,8.53314924]
[1753400668208,7.87314924,182.97,182.91,8.53314924]
[1753400668526,26.0,182.98,182.93,7.87314924]
[1753400668683,5.46418228,183.01,182.94,8.53314924]
[1753400668684,7.87314924,183.0,182.94,8.53314924]
[1753400669119,13.33776171,183.0,182.94,8.53314924]
[1753400669590,7.87314924,182.99,182.94,0.66]
[1753400672623,7.87314924,182.99,182.93,8.53314924]
[1753400672805,7.87314924,182.98,182.93,0.66]
[1753400673394,5.46475351,183.0,182.92,52.99988203]
[1753400673591,7.87314924,182.99,182.94,0.66]
[1753400673790,7.87314924,182.99,182.93,7.87314924]
[1753400674009,7.87314924,182.99,182.92,39.66]
[1753400674010,7.87314924,182.95,182.92,39.66]
[1753400674622,7.87314924,182.96,182.92,40.32]
[1753400675203,7.87314924,182.96,182.93,0.66]
[1753400675407,7.87314924,182.99,182.94,0.66]
[1753400675718,7.87314924,183.0,182.95,0.66]
[1753400675912,7.87314924,183.0,182.96,0.66]
[1753400676113,7.87314924,182.99,182.96,0.66]
[1753400677117,7.87314924,183.01,182.97,0.66]
[1753400677291,7.87314924,183.01,182.95,13.33895514]
[1753400677491,7.87314924,183.01,182.97,0.66]
[1753400677707,7.87314924,183.02,182.98,0.66]
[1753400678018,26.0,183.03,182.99,0.66]
[1753400678420,0.66,183.05,183.0,8.53314924]
[1753400678714,7.87314924,183.07,183.02,7.87314924]
[1753400678893,7.87314924,183.08,183.02,47.53314924]
[1753400679095,7.87314924,183.09,183.04,5.46328671]
[1753400679415,7.87314924,183.08,183.02,47.53314924]
[1753400679607,7.87314924,183.08,183.02,52.99687513]
[1753400679807,7.87314924,183.08,183.03,0.66]
[1753400680015,7.87314924,183.07,183.03,0.66]
[1753400680620,7.87314924,183.07,183.02,39.66]
[1753400680927,7.87314924,183.06,183.02,39.66]
[1753400681115,7.87314924,183.03,183.0,0.66]
[1753400681315,7.87314924,183.03,183.0,40.32]
[1753400681496,7.87314924,183.04,183.0,40.32]
[1753400682022,13.3364763,183.04,183.0,39.66]
[1753400682200,13.3364763,183.04,182.97,33.7712]
[1753400682201,7.87314924,183.01,182.97,8.4312]
[1753400682405,7.87314924,183.01,182.98,39.66]
[1753400682738,7.87314924,183.0,182.98,39.66]
[1753400682914,7.87314924,182.99,182.94,0.66]
[1753400683224,7.87314924,182.96,182.95,39.66]
[1753400683604,5.4654883,182.97,182.95,39.66]
[1753400683825,7.87314924,182.96,182.95,39.66]
[1753400685114,5.4659743,182.95,182.92,39.66]
[1753400685424,7.87314924,182.95,182.92,39.66]
[1753400685805,7.87314924,182.95,182.93,0.06]
[1753400686415,7.87314924,182.94,182.93,0.06]
[1753400686625,8.81747238,182.94,182.93,0.06]
[1753400686840,7.87314924,182.9,182.89,0.2]
[1753400687139,13.3406178,182.9,182.89,0.2]
[1753400687435,14.0006178,182.9,182.89,0.2]
[1753400688130,14.28494094,182.9,182.89,1e-08]
[1753400688640,26.0,182.87,182.85,0.06]
[1753400688828,33.87314924,182.86,182.85,0.06]
[1753400689045,34.53314924,182.86,182.85,0.06]
[1753400689436,40.00181379,182.86,182.85,0.06]
[1753400690342,39.34181379,182.86,182.85,0.06]
[1753400690929,40.00181379,182.86,182.85,0.06]
[1753400691545,40.28613693,182.86,182.85,0.06]
[1753400692832,39.34181379,182.86,182.85,0.06]
[1753400693635,40.00181379,182.86,182.85,0.06]
[1753400695224,39.34181379,182.86,182.85,0.06]
[1753400697352,33.87314924,182.89,182.85,0.76]
[1753400697851,7.87314924,182.88,182.85,0.06]
[1753400698435,7.87314924,182.88,182.85,0.76]
[1753400698637,5.46719755,182.91,182.86,0.7]
[1753400698848,39.34034679,182.91,182.85,14.59444924]
[1753400699052,39.34034679,182.91,182.87,0.7]
[1753400699250,39.34034679,182.91,182.85,14.59444924]
[1753400699251,20.0430235,182.99,182.89,7.87314924]
[1753400699454,20.0430235,182.99,182.9,14.0405671]
[1753400699455,7.87314924,182.96,182.9,14.0405671]
[1753400699749,7.87314924,182.97,182.91,8.57314924]
[1753400699948,7.87314924,182.97,182.92,0.7]
[1753400700159,7.87314924,182.97,182.91,7.87314924]
[1753400700323,7.87314924,182.97,182.92,8.57314924]
[1753400700528,7.87314924,182.97,182.92,7.87314924]
[1753400700729,5.46514019,182.98,182.92,7.87314924]
[1753400700730,13.33828943,182.98,182.93,0.7]
[1753400700928,13.33797652,182.99,182.94,0.7]
[1753400701158,13.33797652,182.99,182.95,0.7]
[1753400701331,7.87314924,182.96,182.9,0.7]
[1753400701635,26.0,182.97,182.92,7.87314924]
[1753400701967,7.87314924,182.96,182.92,0.7]
[1753400702373,7.87314924,182.95,182.9,0.7]
[1753400702533,7.87314924,182.96,182.91,0.7]
[1753400702862,7.87314924,182.96,182.92,0.7]
[1753400703157,13.33889378,182.96,182.93,0.7]
[1753400703832,0.03,183.01,182.94,0.7]
[1753400704033,33.87314924,182.99,182.94,0.7]
[1753400704234,33.87314924,182.99,182.95,0.7]
[1753400704663,5.46507815,182.98,182.95,0.7]
[1753400704857,39.33796213,182.99,182.95,0.7]
[1753400705156,7.87314924,183.0,182.96,0.7]
[1753400705360,7.87314924,183.0,182.97,0.7]
[1753400705750,0.03,183.01,182.94,2.2044]
[1753400705751,7.87314924,182.99,182.94,2.2044]
[1753400706261,7.87314924,182.99,182.95,0.7]
[1753400706759,5.46477949,182.99,182.96,0.7]
[1753400707059,13.33792873,182.99,182.94,1.5044]
[1753400707243,0.03,183.01,182.98,7.87314924]
[1753400707558,0.03,183.01,183.0,7.87314924]
[1753400707776,5.49425907,183.01,182.95,6.4467]
[1753400707960,7.87314924,182.99,182.95,6.4467]
[1753400708644,7.87314924,182.99,182.96,0.7]
[1753400708855,13.33810234,182.99,182.95,6.4467]
[1753400709237,13.33810234,182.99,182.95,7.1467]
[1753400710241,7.87314924,182.98,182.94,39.66]
[1753400710651,7.87314924,182.97,182.94,39.66]
[1753400710964,13.33884636,182.96,182.91,6.1698]
[1753400711255,13.33884636,182.96,182.92,0.7]
[1753400711470,7.87314924,182.93,182.87,46.0707]
[1753400711651,7.87314924,182.91,182.87,46.0707]
[1753400711861,7.87314924,182.92,182.87,46.0707]
[1753400712043,7.87314924,182.92,182.88,0.7]
[1753400712646,7.87314924,182.92,182.87,51.53890097]
[1753400712846,13.33976264,182.93,182.88,0.7]
[1753400713466,13.33976264,182.93,182.89,0.7]
[1753400713967,13.33976264,182.93,182.9,0.7]
[1753400714172,0.03,183.01,182.95,16.78468397]
[1753400714357,5.49431376,183.01,182.98,7.87314924]
[1753400714675,7.87314924,182.99,182.92,40.34]
[1753400714854,7.87314924,182.96,182.92,40.34]
[1753400715558,7.87314924,182.94,182.89,1.5285]
[1753400715759,26.0,182.98,182.84,10.10164924]
[1753400715760,7.87314924,182.9,182.84,10.10164924]
[1753400715957,13.34114445,182.89,182.84,2.2285]
[1753400716156,13.34114445,182.89,182.85,0.76]
[1753400717154,7.87314924,182.9,182.85,0.76]
[1753400717360,33.87314924,182.93,182.87,7.87314924]
[1753400717668,7.87314924,182.91,182.86,0.7]
[1753400717865,7.87314924,182.89,182.85,0.06]
[1753400718070,7.87314924,182.88,182.85,0.06]
[1753400718259,7.87314924,182.86,182.85,0.06]
[1753400718464,7.87314924,182.87,182.85,0.06]
[1753400718662,7.87314924,182.86,182.85,0.06]
[1753400718862,7.87314924,182.87,182.85,0.06]
[1753400720088,13.34160425,182.87,182.85,0.06]
[1753400721686,26.0,182.89,182.86,0.7]
[1753400722562,26.0,182.89,182.85,7.93314924]
[1753400722767,5.46730112,182.91,182.87,0.7]
[1753400723094,5.466627,182.93,182.88,0.7]
[1753400723392,5.466627,182.93,182.89,0.7]
[1753400723891,13.33977624,182.93,182.89,0.7]
[1753400724286,7.87314924,182.9,182.85,0.06]
[1753400724479,7.87314924,182.89,182.85,0.06]
[1753400724881,5.466627,182.93,182.85,0.06]
[1753400724882,7.87314924,182.87,182.85,0.06]
[1753400726086,13.34181379,182.86,182.85,0.06]
[1753400727892,14.01181379,182.86,182.85,0.06]
[1753400728061,13.34181379,182.86,182.85,0.06]
[1753400730082,39.66,182.89,182.85,0.06]
[1753400730328,26.0,182.89,182.86,0.72]
[1753400730471,13.3406178,182.9,182.86,0.72]
[1753400730671,26.0,182.89,182.86,0.72]
[1753400731192,26.0,182.89,182.85,0.06]
[1753400731392,31.46802759,182.89,182.85,0.78]
[1753400731588,7.87314924,182.88,182.85,0.06]
[1753400732681,7.87314924,182.86,182.85,0.06]
[1753400733187,8.54314924,182.86,182.85,0.06]
[1753400733382,14.01181379,182.86,182.85,0.06]
[1753400733896,26.0,182.84,182.83,0.06]
[1753400734068,33.87314924,182.84,182.83,0.06]
[1753400734268,74.20314924,182.84,182.83,0.06]
[1753400735174,73.53314924,182.84,182.83,0.06]
[1753400735895,16.3454,182.92,182.83,0.06]
[1753400735896,0.67,182.9,182.83,8.65314924]
[1753400736068,1.5187,182.93,182.87,7.87314924]
[1753400736069,17.36559611,182.93,182.87,7.87314924]
[1753400736266,4.02587496,182.92,182.89,7.87314924]
[1753400736486,5.46657191,182.93,182.89,7.87314924]
[1753400736487,5.46657191,182.93,182.9,0.72]
[1753400736769,7.87314924,182.91,182.86,7.87314924]
[1753400736972,7.87314924,182.91,182.85,8.59314924]
[1753400737290,7.87314924,182.9,182.84,8.59314924]
[1753400737674,13.34051612,182.91,182.85,7.87314924]
[1753400737883,39.66,182.92,182.85,7.87314924]
[1753400738072,52.99916836,182.95,182.89,7.87314924]
[1753400738277,47.53314924,182.95,182.9,7.87314924]
[1753400738570,7.87314924,182.94,182.9,0.72]
[1753400738874,7.87314924,182.93,182.87,7.87314924]
[1753400739271,5.46613207,182.95,182.89,7.87314924]
[1753400739272,33.87314924,182.94,182.89,7.87314924]
[1753400739587,33.87314924,182.94,182.89,8.59314924]
[1753400739790,5.46657191,182.93,182.89,0.72]
[1753400739971,39.33944041,182.94,182.89,0.72]
[1753400740179,39.33944041,182.94,182.9,0.72]
[1753400741372,0.03,182.96,182.91,0.72]
[1753400741574,0.03,182.96,182.94,7.87314924]
[1753400741993,0.03,182.96,182.94,8.59314924]
[1753400742694,0.03,182.96,182.95,8.59314924]
[1753400743798,0.03,182.96,182.95,14.05912354]
[1753400744693,0.03,182.96,182.95,31.12813065]
[1753400745080,0.03,183.0,182.97,0.28432314]
[1753400745319,0.03,183.0,182.99,24.65783321]
[1753400745494,0.03,183.0,182.99,25.37783321]
[1753400745791,0.03,183.0,182.99,31.12693584]
[1753400747678,0.03,183.0,182.99,37.57333584]
[1753400747998,0.03,183.0,182.99,39.09583584]
[1753400748502,0.03,183.01,183.0,17.06900711]
[1753400748673,0.03,183.08,183.0,17.06900711]
[1753400748674,0.03,183.08,183.07,7.87314924]
[1753400749091,0.03,183.08,183.07,8.59314924]
[1753400750080,0.03,183.08,183.07,25.37783321]
[1753400750502,0.03,183.08,183.07,30.84022464]
[1753400751082,0.03,183.08,183.07,70.46022464]
[1753400753112,0.03,183.08,183.07,64.99783321]
[1753400753309,0.03,183.08,183.07,70.46022464]
[1753400753682,0.03,183.08,183.07,71.00646378]
[1753400754079,0.03,183.08,183.07,78.94518692]
[1753400754303,0.03,183.08,183.07,78.11462464]
[1753400758582,0.03,183.08,183.07,104.39894778]
[1753400758801,0.03,183.1,183.09,0.28432314]
[1753400759003,0.03,183.1,183.09,8.70365185]
[1753400759197,0.03,183.1,183.09,9.36365185]
[1753400759592,0.03,183.1,183.09,26.14833582]
[1753400759798,0.03,183.1,183.09,57.61013056]
[1753400760344,0.03,183.1,183.07,6.1333]
[1753400760512,0.03,183.1,183.08,48.11314924]
[1753400760812,0.03,183.1,183.09,25.20401268]
[1753400761011,0.03,183.1,183.09,8.53314924]
[1753400761307,0.03,183.1,183.09,7.87314924]
[1753400762289,0.03,183.1,183.09,30.77962795]
[1753400763714,0.03,183.1,183.09,31.06395109]
[1753400764485,0.03,183.1,183.09,30.77962795]
[1753400766900,0.03,183.1,183.07,26.54623914]
[1753400767102,0.03,183.1,183.09,7.87314924]
[1753400767617,0.03,183.1,183.09,8.53314924]
[1753400767987,0.03,183.1,183.09,31.06395109]
[1753400768208,0.03,183.1,183.09,31.61013056]
[1753400768825,0.03,183.11,183.1,25.24420711]
[1753400769025,0.03,183.12,183.1,73.35735635]
[1753400769225,0.03,183.12,183.11,9.36359219]
[1753400769437,0.03,183.12,183.11,8.81747238]
[1753400769726,0.03,183.12,183.11,8.15747238]
[1753400769926,0.03,183.12,183.11,52.14827616]
[1753400770099,0.03,183.12,183.11,57.60947434]
[1753400771498,0.03,183.14,183.13,42.78468397]
[1753400771818,0.03,183.14,183.13,72.65704262]
[1753400771999,0.03,183.14,183.13,73.31704262]
[1753400772403,0.03,183.18,183.14,16.78468397]
[1753400772604,0.03,183.18,183.14,33.19098245]
[1753400773324,0.03,183.18,183.17,43.06900711]
[1753400773517,0.03,183.18,183.17,91.04809727]
[1753400773715,0.03,183.18,183.17,91.70809727]
[1753400774228,1e-08,183.2,183.18,27.06900711]
[1753400774402,0.03,183.24,183.22,43.06900711]
[1753400774608,0.03,183.24,183.22,91.04794829]
[1753400774802,0.03,183.24,183.22,91.70794829]
[1753400775125,0.03,183.24,183.22,43.33047591]
[1753400775378,0.03,183.24,183.22,39.56]
[1753400775379,5.48734833,183.24,183.22,39.56]
[1753400775510,6.23762156,183.23,183.17,7.87314924]
[1753400775842,7.87314924,183.21,183.18,39.56]
[1753400776009,7.87314924,183.21,183.19,39.56]
[1753400776207,0.68,183.2,183.19,39.56]
[1753400776522,6.13851528,183.2,183.19,39.56]
[1753400776698,14.01166452,183.2,183.19,39.56]
[1753400777358,5.45813526,183.22,183.19,39.56]
[1753400777701,6.13813526,183.22,183.19,39.56]
[1753400777940,0.68,183.21,183.19,39.56]
[1753400778815,0.1,183.23,183.19,47.43314924]
[1753400779232,6.23763469,183.23,183.19,47.43314924]
[1753400779650,0.1,183.23,183.21,7.87314924]
[1753400779819,0.1,183.23,183.22,39.56]
[1753400783252,5.55762156,183.23,183.22,39.56]
[1753400783448,0.1,183.23,183.22,39.56]
[1753400784329,0.1,183.23,183.19,7.87314924]
[1753400784528,5.55762156,183.23,183.2,39.54]
[1753400784725,0.68,183.22,183.16,24.65783321]
[1753400784947,0.68,183.22,183.17,47.41314924]
[1753400785153,5.45821734,183.21,183.17,47.41314924]
[1753400785537,5.45821734,183.21,183.18,7.87314924]
[1753400785745,5.45821734,183.21,183.19,39.54]
[1753400785940,6.13821734,183.21,183.19,39.54]
[1753400786140,8.55314924,183.2,183.14,7.87314924]
[1753400786338,8.55314924,183.2,183.15,39.54]
[1753400786661,0.68,183.19,183.15,39.54]
[1753400786870,7.87314924,183.16,183.15,39.54]
[1753400787166,0.68,183.19,183.15,39.54]
[1753400787167,6.13907094,183.19,183.15,39.54]
[1753400787542,6.13907094,183.19,183.15,47.41314924]
[1753400787854,6.13907094,183.19,183.15,39.54]
[1753400788060,6.17791944,183.22,183.16,8.57314924]
[1753400788249,14.05106868,183.22,183.16,8.57314924]
[1753400788961,26.97586728,183.22,183.11,42.78468397]
[1753400789162,7.87314924,183.15,183.09,24.65783321]
[1753400789370,7.87314924,183.15,183.1,56.32468397]
[1753400789542,8.59314924,183.15,183.1,56.32468397]
[1753400789739,8.59314924,183.15,183.1,39.54]
[1753400790059,0.72,183.14,183.1,39.54]
[1753400790454,13.33328592,183.15,183.1,39.54]
[1753400790652,14.05328592,183.15,183.1,39.54]
[1753400790862,13.33328592,183.15,183.1,39.54]
[1753400791162,0.72,183.14,183.1,39.54]
[1753400792264,6.18045893,183.14,183.1,39.54]
[1753400792897,7.87314924,183.12,183.07,0.06]
[1753400793055,7.87314924,183.12,183.08,39.54]
[1753400793370,8.59314924,183.11,183.08,39.54]
[1753400793601,8.59314924,183.1,183.08,39.54]
[1753400793875,8.59314924,183.09,183.07,0.06]
[1753400794181,33.87314924,183.11,183.07,0.06]
[1753400794768,7.87314924,183.08,183.07,0.06]
[1753400794970,7.87314924,183.08,183.07,39.6]
[1753400795176,8.59314924,183.08,183.07,39.6]
[1753400796880,14.05524231,183.08,183.07,39.6]
[1753400798160,0.72,183.13,183.07,48.17314924]
[1753400798382,7.87314924,183.14,183.08,7.87314924]
[1753400798568,7.87314924,183.09,183.07,39.6]
[1753400798775,8.59314924,183.09,183.07,39.6]
[1753400798966,7.87314924,183.09,183.07,39.6]
[1753400799280,8.59314924,183.08,183.07,39.6]
[1753400799672,8.87747238,183.08,183.07,0.06]
[1753400799895,26.0,183.05,183.03,0.06]
[1753400800192,8.15747238,183.04,183.03,0.06]
[1753400800372,8.87747238,183.04,183.03,0.06]
[1753400800567,8.59314924,183.04,183.03,0.06]
[1753400800891,0.72,183.07,183.03,0.06]
[1753400801065,26.0,183.06,183.03,0.06]
[1753400801265,31.46277207,183.06,183.03,0.06]
[1753400801586,7.87314924,183.07,183.03,0.06]
[1753400801888,8.59314924,183.05,183.03,0.06]
[1753400802281,0.72,183.04,183.03,0.06]
[1753400803473,14.05643595,183.04,183.03,0.06]
[1753400804791,0.28432314,183.08,183.03,0.06]
[1753400805002,7.87314924,183.06,183.03,0.06]
[1753400805596,7.87314924,183.04,183.03,0.06]
[1753400805892,8.59314924,183.04,183.03,0.06]
[1753400806894,8.87747238,183.04,183.03,0.06]
[1753400807197,33.53530559,183.04,183.03,1e-08]